Workbook

Sheet INFO
C2: BREAK EVEN ANALYSIS
B5: Purpose
B7: To calculate the sales volume required to cover all operating costs, both fixed and variable.
B9: This worksheet and linked graph illustrates the point where no profit or loss results and how variations
B10: of sales and/or expenses, give varying results to profit or loss.
B13: Steps
B15: 1 | D15: Enter name, date and other requested data on the INPUT tab.
B17: 2 | D17: The graph will automatically be updated.
B19: 3 | D19: The document and graph is now ready to print - OUTPUT.
E20: NOTE: To just print the graph, select the graph then print.
L54: Break Even.xls

Sheet INPUT
B2: BREAK-EVEN ANALYSIS
B3: INPUT FORM
B5: NAME: | C5: SAMPLE PTY LIMITED
B6: DATE: | C6: 2003-06-30
E8: Gross profit as a % of Sales = | F8: 0.2
E9: Other Expenses as a % of Sales = | F9: 0.05
E10: Fixed Expenses per year = | F10: 50000
D11: Expected Annual Sales
E12: Highest = | F12: 200000
E13: Lowest = | F13: 100000

Sheet OUTPUT
B1: =INPUT!C5 -> SAMPLE PTY LIMITED
B2: =INPUT!C6 -> 2003-06-30
G5: Gross Profit as a % of Sales = | H5: =INPUT!F8 -> 0.2
G6: Other Expenses as a % of Sales = | H6: =INPUT!F9 -> 0.05
G7: Fixed Expenses per year = | H7: =INPUT!F10 -> 50000
F8: Expected Annual Sales
G9: Highest = | H9: =INPUT!F12 -> 200000
G10: Lowest = | H10: =INPUT!F13 -> 100000
H12: TOTAL
E13: FIXED | F13: COST OF | G13: OTHER | H13: VARIABLE | I13: TOTAL | J13: PROFIT OR
C14: NO. | D14: SALES | E14: EXPENSES | F14: SALES | G14: EXPENSES | H14: EXPENSES | I14: EXPENSES | J14: (LOSS)
C15: 1 | D15: =INPUT!F13 -> 100000 | E15: =INPUT!$F$10 -> 50000 | F15: =D15-(D15*INPUT!$F$8) -> 80000 | G15: =D15*(INPUT!$F$9) -> 5000 | H15: =SUM(F15:G15) -> 85000 | I15: =SUM(E15:G15) -> 135000 | J15: =D15-I15 -> -35000
C16: 2 | D16: =(INPUT!$F$12-INPUT!$F$13)/9+D15 -> 111111.1111 | E16: =INPUT!$F$10 -> 50000 | F16: =D16-(D16*INPUT!$F$8) -> 88888.88889 | G16: =D16*(INPUT!$F$9) -> 5555.555556 | H16: =SUM(F16:G16) -> 94444.44444 | I16: 144444.4444 | J16: -33333.33333
C17: 3 | D17: =(INPUT!$F$12-INPUT!$F$13)/9+D16 -> 122222.2222 | E17: =INPUT!$F$10 -> 50000 | F17: =D17-(D17*INPUT!$F$8) -> 97777.77778 | G17: =D17*(INPUT!$F$9) -> 6111.111111 | H17: 103888.8889 | I17: 153888.8889 | J17: -31666.66667
C18: 4 | D18: =(INPUT!$F$12-INPUT!$F$13)/9+D17 -> 133333.3333 | E18: =INPUT!$F$10 -> 50000 | F18: =D18-(D18*INPUT!$F$8) -> 106666.6667 | G18: =D18*(INPUT!$F$9) -> 6666.666667 | H18: 113333.3333 | I18: 163333.3333 | J18: -30000
C19: 5 | D19: =(INPUT!$F$12-INPUT!$F$13)/9+D18 -> 144444.4444 | E19: =INPUT!$F$10 -> 50000 | F19: =D19-(D19*INPUT!$F$8) -> 115555.5556 | G19: =D19*(INPUT!$F$9) -> 7222.222222 | H19: 122777.7778 | I19: 172777.7778 | J19: -28333.33333
C20: 6 | D20: =(INPUT!$F$12-INPUT!$F$13)/9+D19 -> 155555.5556 | E20: =INPUT!$F$10 -> 50000 | F20: =D20-(D20*INPUT!$F$8) -> 124444.4444 | G20: =D20*(INPUT!$F$9) -> 7777.777778 | H20: 132222.2222 | I20: 182222.2222 | J20: -26666.66667
C21: 7 | D21: =(INPUT!$F$12-INPUT!$F$13)/9+D20 -> 166666.6667 | E21: =INPUT!$F$10 -> 50000 | F21: =D21-(D21*INPUT!$F$8) -> 133333.3333 | G21: =D21*(INPUT!$F$9) -> 8333.333333 | H21: 141666.6667 | I21: 191666.6667 | J21: -25000
C22: 8 | D22: =(INPUT!$F$12-INPUT!$F$13)/9+D21 -> 177777.7778 | E22: =INPUT!$F$10 -> 50000 | F22: =D22-(D22*INPUT!$F$8) -> 142222.2222 | G22: =D22*(INPUT!$F$9) -> 8888.888889 | H22: 151111.1111 | I22: 201111.1111 | J22: -23333.33333
C23: 9 | D23: =(INPUT!$F$12-INPUT!$F$13)/9+D22 -> 188888.8889 | E23: =INPUT!$F$10 -> 50000 | F23: =D23-(D23*INPUT!$F$8) -> 151111.1111 | G23: =D23*(INPUT!$F$9) -> 9444.444444 | H23: 160555.5556 | I23: 210555.5556 | J23: -21666.66667
C24: 10 | D24: =(INPUT!$F$12-INPUT!$F$13)/9+D23 -> 200000 | E24: =INPUT!$F$10 -> 50000 | F24: =D24-(D24*INPUT!$F$8) -> 160000 | G24: =D24*(INPUT!$F$9) -> 10000 | H24: 170000 | I24: 220000 | J24: -20000
G26: THE BREAK-EVEN POINT IS | H26: =CALCULATION!C5 -> 333333.3333

Sheet EXAMPLE
B1: SAMPLE PTY LIMITED
B2: 2003-06-30
B3: (SAMPLE REPORT ONLY)
G5: Gross Profit as a % of Sales = | H5: 0.3
G6: Other Expenses as a % of Sales = | H6: 0.11
G7: Fixed Expenses per year = | H7: 50000
F8: Expected Annual Sales
G9: Highest = | H9: 500000
G10: Lowest = | H10: 200000
H12: TOTAL
E13: FIXED | F13: COST OF | G13: OTHER | H13: VARIABLE | I13: TOTAL | J13: PROFIT OR
C14: NO. | D14: SALES | E14: EXPENSES | F14: SALES | G14: EXPENSES | H14: EXPENSES | I14: EXPENSES | J14: (LOSS)
C15: 1 | D15: 200000 | E15: 50000 | F15: 140000 | G15: 22000 | H15: 162000 | I15: 212000 | J15: -12000
C16: 2 | D16: 233333 | E16: 50000 | F16: 163333 | G16: 25667 | H16: 189000 | I16: 239000 | J16: -5667
C17: 3 | D17: 266667 | E17: 50000 | F17: 186667 | G17: 29333 | H17: 216000 | I17: 266000 | J17: 667
C18: 4 | D18: 300000 | E18: 50000 | F18: 210000 | G18: 33000 | H18: 243000 | I18: 293000 | J18: 7000
C19: 5 | D19: 333333 | E19: 50000 | F19: 233333 | G19: 36667 | H19: 270000 | I19: 320000 | J19: 13333
C20: 6 | D20: 366667 | E20: 50000 | F20: 256667 | G20: 40333 | H20: 297000 | I20: 347000 | J20: 19667
C21: 7 | D21: 400000 | E21: 50000 | F21: 280000 | G21: 44000 | H21: 324000 | I21: 374000 | J21: 26000
C22: 8 | D22: 433333 | E22: 50000 | F22: 303333 | G22: 47667 | H22: 351000 | I22: 401000 | J22: 32333
C23: 9 | D23: 466667 | E23: 50000 | F23: 326667 | G23: 51333 | H23: 378000 | I23: 428000 | J23: 38667
C24: 10 | D24: 500000 | E24: 50000 | F24: 350000 | G24: 55000 | H24: 405000 | I24: 455000 | J24: 45000
G26: THE BREAK-EVEN POINT IS | H26: 263158

Sheet CALCULATION (hidden)
A1: CALCULATIONS
C3: =(1-INPUT!F8)+INPUT!F9 -> 0.85
C4: =1-C3 -> 0.15
B5: Break-even sales | C5: =IF(INPUT!F10=0,0,INPUT!F10/C4) -> 333333.3333
